[Event "British KO-ch Pre 2019"]
[Site "London"]
[Date "2019.11.30"]
[Round "7.2"]
[White "Taylor, Adam C"]
[Black "Horton, Andrew P"]
[Result "1/2-1/2"]
[ECO "A13"]
[WhiteElo "2371"]
[BlackElo "2378"]
[Annotator "NA"]
[PlyCount "109"]
[EventDate "2019.11.30"]
[EventType "k.o."]
[EventCountry "ENG"]
[SourceTitle "playchess.com"]
[Source "ChessBase"]
[SourceQuality "1"]
[TimeControl "600+5"]

1. Nf3 {[%emt 0:00:00]} Nf6 {[%emt 0:00:00]} 2. c4 {[%emt 0:00:00]} e6 {[%emt 0:00:01]} 3. g3 {[%emt 0:00:00]} a6 {[%emt 0:00:02]} 4. b3 {[%emt 0:00:15]} b5 {[%emt 0:00:03]} 5. Bg2 {[%emt 0:00:23]} Bb7 {[%emt 0:00:01]} 6. O-O {[%emt 0:00:05]} c5 {[%emt 0:00:22]} 7. Bb2 {[%emt 0:00:12]} Be7 {[%emt 0:00:04]} 8. Nc3 {[%emt 0:00:10]} Qb6 {[%emt 0:01:37]} 9. Rb1 {[%emt 0:00:17]} O-O {[%emt 0:00:08]} 10. e3 {[%emt 0:00:22]} d6 {[%emt 0:00:37]} 11. Qe2 {[%emt 0:00:07]} Nbd7 {[%emt 0:00:39]} 12. Rfd1 {[%emt 0:00:09]} b4 {[%emt 0:00:48]} 13. Na4 {[%emt 0:00:03]} Qc7 {[%emt 0:00:02]} 14. d4 {[%emt 0:00:09]} Be4 {[%emt 0:00:47]} 15. Rbc1 {[%emt 0:00:08]} Rfd8 {[%emt 0:00:57]} 16. Nd2 {[%emt 0:00:18]} Bxg2 17. Kxg2 {[%emt 0:00:02]} Nb6 {[%emt 0:00:30]} 18. Nxb6 Qxb6 {[%emt 0:00:01]} 19. Qf3 {[%emt 0:00:33]} a5 {[%emt 0:01:01]} 20. h4 {[%emt 0:02:21]} a4 {[%emt 0:00:28]} 21. h5 {[%emt 0:00:09]} axb3 22. axb3 {[%emt 0:00:04]} Ra2 {[%emt 0:00:42]} 23. dxc5 {[%emt 0:00:59]} dxc5 {[%emt 0:01:24]} 24. Bxf6 {[%emt 0:00:02]} Bxf6 {[%emt 0:01:03]} 25. Ne4 {[%emt 0:00:01]} Be7 {[%emt 0:00:07]} 26. Rxd8+ {[%emt 0:00:01]} Qxd8 {[%emt 0:00:04]} 27. Rd1 {[%emt 0:00:01]} Qa8 {[%emt 0:00:11]} 28. Rd7 {[%emt 0:00:49]} Qe8 {[%emt 0:00:23]} 29. Qd1 {[%emt 0:00:38]} Ra8 {[%emt 0:00:10]} 30. g4 {[%emt 0:00:32]} h6 {[%emt 0:00:09]} 31. Rb7 {[%emt 0:00:26]} Rd8 {[%emt 0:00:04]} 32. Qf3 {[%emt 0:00:01]} Rd7 {[%emt 0:00:05]} 33. Ng3 {[%emt 0:00:54]} Rxb7 {[%emt 0:00:05]} 34. Qxb7 {[%emt 0:00:01]} Bf8 {[%emt 0:00:02]} 35. Ne4 {[%emt 0:00:23]} Kh8 {[%emt 0:00:05]} 36. Qc7 {[%emt 0:01:26]} Qe7 {[%emt 0:00:07]} 37. Qxe7 Bxe7 {[%emt 0:00:00]} 38. f4 {[%emt 0:00:18]} Kg8 {[%emt 0:00:06]} 39. f5 {[%emt 0:00:13]} Kf8 {[%emt 0:00:10]} 40. fxe6 {[%emt 0:00:04]} fxe6 {[%emt 0:00:01]} 41. Kf3 {[%emt 0:00:01]} Kf7 {[%emt 0:00:05]} 42. Nf2 {[%emt 0:00:04]} Bh4 {[%emt 0:00:07]} 43. Nd3 {[%emt 0:00:01]} Be7 {[%emt 0:00:02]} 44. Ne5+ {[%emt 0:00:33]} Kf6 {[%emt 0:00:04]} 45. Ng6 {[%emt 0:00:01]} Bd6 {[%emt 0:00:03]} 46. Nh4 {[%emt 0:00:08]} Be5 {[%emt 0:00:12]} 47. Ng2 {[%emt 0:00:02]} Bd6 {[%emt 0:00:04]} 48. Ne1 {[%emt 0:00:01]} Be5 {[%emt 0:00:02]} 49. Nd3 {[%emt 0:00:01]} Bd6 {[%emt 0:00:01]} 50. Nf2 {[%emt 0:00:05]} Be7 {[%emt 0:00:05]} 51. Ne4+ {[%emt 0:00:01]} Ke5 {[%emt 0:00:04]} 52. Nf2 {[%emt 0:00:10]} Bd6 {[%emt 0:00:07]} 53. Nd3+ {[%emt 0:00:03]} Kf6 {[%emt 0:00:01]} 54. Ne1 {[%emt 0:00:03]} Ke5 {[%emt 0:00:05]} 55. Nd3+ {[%emt 0:00:09]} 1/2-1/2

[Event "British KO-ch Pre 2019"]
[Site "London"]
[Date "2019.11.30"]
[Round "7.3"]
[White "Clarke, Brandon G I"]
[Black "Fernandez, Daniel Howard"]
[Result "1-0"]
[ECO "B56"]
[WhiteElo "2431"]
[BlackElo "2444"]
[Annotator "NA"]
[PlyCount "57"]
[EventDate "2019.11.30"]
[EventType "k.o."]
[EventCountry "ENG"]
[SourceTitle "playchess.com"]
[Source "ChessBase"]
[SourceQuality "1"]
[TimeControl "600+5"]

1. e4 {[%emt 0:00:00]} c5 {[%emt 0:00:00]} 2. Nf3 {[%emt 0:00:00]} d6 {[%emt 0:00:00]} 3. d4 {[%emt 0:00:00]} Nf6 {[%emt 0:00:00]} 4. Nc3 {[%emt 0:00:00]} cxd4 {[%emt 0:00:02]} 5. Nxd4 {[%emt 0:00:01]} Nbd7 {[%emt 0:00:12]} 6. g4 {[%emt 0:00:04]} Nc5 {[%emt 0:00:07]} 7. f3 {[%emt 0:00:18]} g6 {[%emt 0:00:04]} 8. Be3 {[%emt 0:00:22]} e5 {[%emt 0:00:26]} 9. Nb3 {[%emt 0:01:36]} Ne6 {[%emt 0:00:12]} 10. Qd2 {[%emt 0:01:04]} a6 {[%emt 0:00:05]} 11. O-O-O {[%emt 0:00:23]} Be7 {[%emt 0:00:06]} 12. h4 {[%emt 0:00:19]} b5 {[%emt 0:01:19]} 13. Nd5 {[%emt 0:02:40]} h5 {[%emt 0:01:21]} 14. Nb6 {[%emt 0:01:28]} Rb8 {[%emt 0:00:11]} 15. g5 {[%emt 0:00:02]} Nxe4 {[%emt 0:00:37]} 16. fxe4 {[%emt 0:00:09]} Rxb6 {[%emt 0:00:02]} 17. Bxb6 {[%emt 0:00:10]} Qxb6 {[%emt 0:00:02]} 18. Bh3 {[%emt 0:00:09]} O-O {[%emt 0:00:19]} 19. Kb1 {[%emt 0:00:24]} Kg7 {[%emt 0:00:48]} 20. Rhf1 {[%emt 0:00:29]} Nf4 {[%emt 0:00:16]} 21. Bxc8 Rxc8 {[%emt 0:00:02]} 22. Nd4 {[%emt 0:01:35]} Rc4 {[%emt 0:00:19]} 23. Ne2 {[%emt 0:00:05]} Ng2 {[%emt 0:01:04]} 24. Qd5 {[%emt 0:00:14]} f6 {[%emt 0:01:02]} 25. gxf6+ Bxf6 {[%emt 0:00:02]} 26. Rxf6 {[%emt 0:00:11]} Kxf6 {[%emt 0:00:38]} 27. Rf1+ {[%emt 0:00:01]} Ke7 {[%emt 0:00:01]} 28. Qf7+ {[%emt 0:00:15]} Kd8 {[%emt 0:00:02]} 29. Qf8+ {[%emt 0:00:03]} 1-0

[Event "British KO-ch Pre 2019"]
[Site "London"]
[Date "2019.11.30"]
[Round "7.4"]
[White "McPhillips, Joseph"]
[Black "Merry, Alan B"]
[Result "1-0"]
[ECO "C00"]
[WhiteElo "2434"]
[BlackElo "2426"]
[Annotator "NA"]
[PlyCount "95"]
[EventDate "2019.11.30"]
[EventType "k.o."]
[EventCountry "ENG"]
[SourceTitle "playchess.com"]
[Source "ChessBase"]
[SourceQuality "1"]
[TimeControl "600+5"]

1. e4 {[%emt 0:00:22]} e6 {[%emt 0:00:00]} 2. c3 {[%emt 0:00:01]} d5 {[%emt 0:00:03]} 3. Bd3 {[%emt 0:00:01]} c5 {[%emt 0:00:41]} 4. Nf3 {[%emt 0:00:02]} dxe4 {[%emt 0:00:25]} 5. Bxe4 {[%emt 0:00:02]} Nf6 {[%emt 0:00:01]} 6. Bc2 {[%emt 0:00:02]} b6 {[%emt 0:00:46]} 7. O-O {[%emt 0:00:03]} Bb7 {[%emt 0:00:02]} 8. d4 {[%emt 0:00:02]} Nbd7 {[%emt 0:00:38]} 9. Re1 {[%emt 0:00:03]} Be7 {[%emt 0:00:02]} 10. Nbd2 {[%emt 0:00:03]} cxd4 {[%emt 0:00:07]} 11. cxd4 {[%emt 0:00:15]} O-O {[%emt 0:00:07]} 12. a3 {[%emt 0:00:05]} Rc8 {[%emt 0:00:06]} 13. Nf1 {[%emt 0:00:11]} Bxf3 {[%emt 0:00:17]} 14. gxf3 {[%emt 0:00:02]} Nd5 {[%emt 0:00:13]} 15. Ng3 {[%emt 0:00:13]} Bd6 {[%emt 0:00:45]} 16. Qd3 {[%emt 0:00:30]} g6 {[%emt 0:00:07]} 17. Bh6 {[%emt 0:00:09]} Re8 {[%emt 0:00:07]} 18. Qd2 {[%emt 0:00:25]} Qf6 {[%emt 0:01:20]} 19. Ba4 {[%emt 0:01:10]} Qd8 {[%emt 0:01:30]} 20. Ne4 {[%emt 0:01:19]} Bf8 {[%emt 0:00:25]} 21. Bg5 {[%emt 0:00:18]} Be7 {[%emt 0:00:19]} 22. Be3 {[%emt 0:00:11]} a6 {[%emt 0:00:16]} 23. b4 {[%emt 0:00:21]} b5 {[%emt 0:00:07]} 24. Bb3 {[%emt 0:00:02]} N7f6 {[%emt 0:00:14]} 25. Nc5 {[%emt 0:00:10]} Qb6 {[%emt 0:00:25]} 26. Bg5 {[%emt 0:00:08]} Red8 {[%emt 0:00:30]} 27. Rac1 {[%emt 0:00:34]} Nh5 {[%emt 0:00:41]} 28. Bxe7 Nxe7 {[%emt 0:00:03]} 29. Nxe6 {[%emt 0:00:31]} Rxc1 30. Qxc1 {[%emt 0:00:02]} Rd6 {[%emt 0:01:16]} 31. Ng5 {[%emt 0:00:35]} Nd5 {[%emt 0:00:19]} 32. Qc5 {[%emt 0:01:07]} Nhf4 {[%emt 0:00:31]} 33. Re4 {[%emt 0:00:53]} Qd8 {[%emt 0:00:10]} 34. Nxf7 {[%emt 0:00:38]} Kxf7 {[%emt 0:00:02]} 35. Rxf4+ {[%emt 0:00:02]} Kg7 {[%emt 0:00:02]} 36. Rg4 {[%emt 0:00:31]} Nf6 {[%emt 0:00:09]} 37. Rf4 {[%emt 0:00:03]} Nd5 {[%emt 0:00:06]} 38. Bxd5 {[%emt 0:00:03]} Rxd5 {[%emt 0:00:07]} 39. Qa7+ {[%emt 0:00:08]} Rd7 {[%emt 0:00:06]} 40. Qxa6 {[%emt 0:00:02]} Rxd4 {[%emt 0:00:07]} 41. Rxd4 {[%emt 0:00:14]} Qxd4 {[%emt 0:00:00]} 42. Qxb5 {[%emt 0:00:02]} Qa1+ {[%emt 0:00:04]} 43. Kg2 {[%emt 0:00:02]} Qxa3 {[%emt 0:00:02]} 44. Qe5+ {[%emt 0:00:02]} Kf7 {[%emt 0:00:06]} 45. b5 {[%emt 0:00:04]} Qb4 {[%emt 0:00:07]} 46. Qc7+ {[%emt 0:00:03]} Kg8 {[%emt 0:00:09]} 47. b6 {[%emt 0:00:02]} Qb5 {[%emt 0:00:06]} 48. b7 {[%emt 0:00:03]} 1-0

[Event "British KO-ch Pre 2019"]
[Site "London"]
[Date "2019.11.30"]
[Round "7.6"]
[White "Pein, Jonathan"]
[Black "Willow, Jonah B"]
[Result "0-1"]
[ECO "B72"]
[WhiteElo "2151"]
[BlackElo "2345"]
[Annotator "NA"]
[PlyCount "102"]
[EventDate "2019.11.30"]
[EventType "k.o."]
[EventCountry "ENG"]
[SourceTitle "playchess.com"]
[Source "ChessBase"]
[SourceQuality "1"]
[TimeControl "600+5"]

1. e4 {[%emt 0:00:00]} c5 {[%emt 0:00:00]} 2. Nf3 {[%emt 0:00:00]} Nc6 {[%emt 0:00:00]} 3. d4 {[%emt 0:00:08]} cxd4 {[%emt 0:00:00]} 4. Nxd4 {[%emt 0:00:01]} g6 {[%emt 0:00:00]} 5. Nc3 {[%emt 0:00:01]} Bg7 {[%emt 0:00:02]} 6. Be3 {[%emt 0:00:01]} Nf6 {[%emt 0:00:00]} 7. Bc4 {[%emt 0:00:02]} O-O {[%emt 0:00:02]} 8. Bb3 {[%emt 0:00:02]} d6 {[%emt 0:00:06]} 9. h3 {[%emt 0:00:20]} Bd7 {[%emt 0:00:07]} 10. O-O {[%emt 0:00:03]} Nxd4 {[%emt 0:00:23]} 11. Bxd4 {[%emt 0:00:01]} Bc6 {[%emt 0:00:36]} 12. Nd5 {[%emt 0:00:23]} e5 {[%emt 0:01:06]} 13. Nxf6+ {[%emt 0:01:04]} Qxf6 {[%emt 0:00:21]} 14. Bc3 {[%emt 0:00:36]} Bxe4 {[%emt 0:00:02]} 15. Qe2 {[%emt 0:00:30]} Bc6 {[%emt 0:01:17]} 16. f4 {[%emt 0:00:01]} Qh4 {[%emt 0:00:41]} 17. Rad1 {[%emt 0:00:58]} exf4 {[%emt 0:01:03]} 18. Bxg7 Kxg7 {[%emt 0:00:01]} 19. Rd4 {[%emt 0:02:05]} f3 {[%emt 0:02:50]} 20. Qd2 {[%emt 0:00:52]} Qh5 {[%emt 0:00:16]} 21. gxf3 {[%emt 0:01:00]} Qxh3 {[%emt 0:00:08]} 22. Rf2 {[%emt 0:00:02]} Qg3+ {[%emt 0:00:07]} 23. Rg2 {[%emt 0:00:38]} Qxf3 {[%emt 0:00:05]} 24. Bd5 {[%emt 0:00:02]} Bxd5 {[%emt 0:00:11]} 25. Rxd5 {[%emt 0:00:01]} Rad8 {[%emt 0:00:47]} 26. Rh2 {[%emt 0:00:07]} Qg4+ {[%emt 0:00:09]} 27. Kh1 {[%emt 0:00:08]} h5 {[%emt 0:00:27]} 28. Rdxh5 {[%emt 0:01:15]} gxh5 {[%emt 0:00:17]} 29. Rg2 {[%emt 0:00:01]} f6 {[%emt 0:00:17]} 30. Qd5 {[%emt 0:00:33]} Qxg2+ {[%emt 0:00:13]} 31. Qxg2+ {[%emt 0:00:09]} Kh6 {[%emt 0:00:08]} 32. Qxb7 {[%emt 0:00:18]} Rde8 {[%emt 0:00:10]} 33. Qb4 {[%emt 0:00:42]} d5 {[%emt 0:00:21]} 34. Qf4+ {[%emt 0:00:09]} Kg6 {[%emt 0:00:01]} 35. Qg3+ {[%emt 0:00:08]} Kf7 {[%emt 0:00:06]} 36. Qc7+ {[%emt 0:00:27]} Re7 {[%emt 0:00:00]} 37. Qd6 {[%emt 0:00:08]} Re5 {[%emt 0:00:11]} 38. Qd7+ {[%emt 0:00:06]} Kg6 {[%emt 0:00:04]} 39. Qxa7 {[%emt 0:00:01]} Rfe8 {[%emt 0:00:05]} 40. a4 {[%emt 0:00:07]} Rg5 {[%emt 0:00:12]} 41. Qf2 {[%emt 0:00:08]} Re4 {[%emt 0:00:14]} 42. a5 {[%emt 0:00:05]} Rf5 {[%emt 0:00:05]} 43. Qg2+ {[%emt 0:00:05]} Rg4 {[%emt 0:00:02]} 44. Qh3 {[%emt 0:00:03]} Rff4 {[%emt 0:00:06]} 45. Qd3+ {[%emt 0:00:03]} Kg5 {[%emt 0:00:16]} 46. Qxd5+ {[%emt 0:00:01]} Kh4 {[%emt 0:00:01]} 47. Qd3 {[%emt 0:00:14]} Rg3 {[%emt 0:00:07]} 48. Qe2 {[%emt 0:00:04]} Rfg4 {[%emt 0:00:04]} 49. Qf2 {[%emt 0:00:02]} Kg5 {[%emt 0:00:04]} 50. Qd2+ {[%emt 0:00:01]} Kg6 {[%emt 0:00:02]} 51. a6 {[%emt 0:00:01]} Rh3+ {[%emt 0:00:01]} 0-1

[Event "British KO-ch Pre 2019"]
[Site "London"]
[Date "2019.11.30"]
[Round "7.7"]
[White "Toma, Katarzyna"]
[Black "Claridge-Hansen, William"]
[Result "0-1"]
[ECO "B01"]
[WhiteElo "2272"]
[BlackElo "2290"]
[Annotator "NA"]
[PlyCount "80"]
[EventDate "2019.11.30"]
[EventType "k.o."]
[EventCountry "ENG"]
[SourceTitle "playchess.com"]
[Source "ChessBase"]
[SourceQuality "1"]
[TimeControl "600+5"]

1. e4 {[%emt 0:00:00]} d5 {[%emt 0:00:00]} 2. exd5 {[%emt 0:00:00]} Qxd5 {[%emt 0:00:01]} 3. Nc3 {[%emt 0:00:00]} Qd6 {[%emt 0:00:01]} 4. d4 {[%emt 0:00:10]} Nf6 {[%emt 0:00:01]} 5. Nb5 {[%emt 0:00:04]} Qb6 {[%emt 0:00:02]} 6. c4 {[%emt 0:00:01]} c6 {[%emt 0:00:16]} 7. Nc3 {[%emt 0:00:03]} Bg4 {[%emt 0:00:52]} 8. Be2 {[%emt 0:01:25]} Bxe2 9. Ngxe2 {[%emt 0:00:02]} e6 {[%emt 0:00:38]} 10. O-O {[%emt 0:00:03]} Be7 {[%emt 0:00:10]} 11. Qc2 {[%emt 0:00:11]} O-O {[%emt 0:00:18]} 12. h3 {[%emt 0:00:04]} Nbd7 {[%emt 0:00:32]} 13. Be3 {[%emt 0:00:02]} Qa6 {[%emt 0:00:09]} 14. b3 {[%emt 0:00:13]} Rac8 {[%emt 0:01:06]} 15. Rfd1 {[%emt 0:00:19]} Rfd8 {[%emt 0:00:31]} 16. a4 {[%emt 0:01:12]} Qa5 {[%emt 0:00:21]} 17. Qb2 {[%emt 0:01:00]} Qf5 {[%emt 0:00:53]} 18. a5 {[%emt 0:00:14]} a6 {[%emt 0:00:32]} 19. b4 {[%emt 0:00:21]} h6 {[%emt 0:00:32]} 20. Qb3 {[%emt 0:00:26]} Nf8 {[%emt 0:00:16]} 21. Ng3 {[%emt 0:00:19]} Qg6 {[%emt 0:00:05]} 22. Na4 {[%emt 0:00:06]} Ne4 {[%emt 0:00:45]} 23. Nxe4 Qxe4 {[%emt 0:00:01]} 24. Nc5 {[%emt 0:00:12]} Bxc5 {[%emt 0:00:07]} 25. bxc5 {[%emt 0:00:01]} Rd7 {[%emt 0:00:08]} 26. Rab1 {[%emt 0:00:09]} Ng6 {[%emt 0:00:09]} 27. Qd3 {[%emt 0:00:35]} Qh4 {[%emt 0:00:28]} 28. Rd2 {[%emt 0:00:24]} Qh5 {[%emt 0:01:35]} 29. Qe4 {[%emt 0:00:32]} Re8 {[%emt 0:00:26]} 30. Rdb2 {[%emt 0:00:13]} f5 {[%emt 0:00:11]} 31. g4 {[%emt 0:01:32]} Qxh3 {[%emt 0:00:40]} 32. gxf5 {[%emt 0:00:21]} Nh4 {[%emt 0:00:03]} 33. f4 {[%emt 0:00:22]} Qxf5 {[%emt 0:00:30]} 34. Qh1 {[%emt 0:00:36]} Qg4+ {[%emt 0:00:01]} 35. Kf1 {[%emt 0:00:20]} Nf5 {[%emt 0:00:10]} 36. Qg1 {[%emt 0:00:29]} Rf8 {[%emt 0:00:11]} 37. Rg2 {[%emt 0:00:56]} Nxe3+ {[%emt 0:00:05]} 38. Qxe3 {[%emt 0:00:02]} Qxf4+ {[%emt 0:00:03]} 39. Qxf4 {[%emt 0:00:09]} Rxf4+ {[%emt 0:00:01]} 40. Ke2 {[%emt 0:00:05]} Rfxd4 {[%emt 0:00:04]} 0-1

[Event "British KO-ch Pre 2019"]
[Site "London"]
[Date "2019.11.30"]
[Round "7.8"]
[White "Kalaiyalahan, Akshaya"]
[Black "Head, Louise"]
[Result "0-1"]
[ECO "A11"]
[WhiteElo "2154"]
[BlackElo "2100"]
[Annotator "NA"]
[PlyCount "102"]
[EventDate "2019.11.30"]
[EventType "k.o."]
[EventCountry "ENG"]
[SourceTitle "playchess.com"]
[Source "ChessBase"]
[SourceQuality "1"]
[TimeControl "600+5"]

1. Nf3 {[%emt 0:00:00]} Nf6 {[%emt 0:00:00]} 2. g3 {[%emt 0:00:00]} d5 {[%emt 0:00:00]} 3. Bg2 {[%emt 0:00:01]} Bf5 {[%emt 0:00:01]} 4. O-O {[%emt 0:00:11]} e6 {[%emt 0:00:04]} 5. d3 {[%emt 0:00:06]} h6 {[%emt 0:00:03]} 6. c4 {[%emt 0:00:22]} c6 {[%emt 0:00:18]} 7. cxd5 {[%emt 0:00:27]} exd5 {[%emt 0:00:26]} 8. Nbd2 {[%emt 0:01:16]} Be7 {[%emt 0:00:18]} 9. Qb3 {[%emt 0:01:09]} Qb6 {[%emt 0:00:07]} 10. Qc2 {[%emt 0:00:02]} O-O {[%emt 0:00:12]} 11. e4 {[%emt 0:00:39]} dxe4 12. dxe4 {[%emt 0:00:03]} Bh7 {[%emt 0:01:03]} 13. Qc4 {[%emt 0:01:30]} Qb4 {[%emt 0:00:36]} 14. Qxb4 {[%emt 0:00:36]} Bxb4 {[%emt 0:00:01]} 15. a3 {[%emt 0:00:10]} Ba5 {[%emt 0:00:20]} 16. b4 {[%emt 0:01:07]} Bc7 {[%emt 0:00:08]} 17. Re1 {[%emt 0:00:10]} Nbd7 {[%emt 0:00:24]} 18. Bb2 {[%emt 0:00:20]} Rfe8 {[%emt 0:00:22]} 19. e5 {[%emt 0:00:47]} Nd5 {[%emt 0:02:09]} 20. Nc4 {[%emt 0:00:29]} N7b6 {[%emt 0:00:06]} 21. Nxb6 Bxb6 {[%emt 0:00:11]} 22. Rad1 {[%emt 0:01:08]} Rad8 {[%emt 0:00:15]} 23. Rc1 {[%emt 0:00:52]} a5 {[%emt 0:00:28]} 24. bxa5 {[%emt 0:00:09]} Bxa5 {[%emt 0:00:02]} 25. Red1 {[%emt 0:00:07]} Nc7 {[%emt 0:00:35]} 26. Rxd8 Rxd8 {[%emt 0:00:03]} 27. Nd4 {[%emt 0:00:19]} Bb6 {[%emt 0:00:44]} 28. Nf3 {[%emt 0:00:10]} Ne6 {[%emt 0:00:06]} 29. Bc3 {[%emt 0:00:06]} Bc5 {[%emt 0:00:14]} 30. a4 {[%emt 0:00:03]} Ra8 {[%emt 0:00:22]} 31. a5 {[%emt 0:00:01]} Rd8 {[%emt 0:00:04]} 32. h4 {[%emt 0:00:09]} Kf8 {[%emt 0:00:13]} 33. Kf1 {[%emt 0:00:06]} Bd3+ {[%emt 0:00:05]} 34. Ke1 {[%emt 0:00:01]} Ba6 {[%emt 0:00:07]} 35. Ng1 {[%emt 0:00:11]} Bd4 {[%emt 0:00:10]} 36. Bxd4 {[%emt 0:00:04]} Rxd4 {[%emt 0:00:03]} 37. Rd1 {[%emt 0:00:03]} Rxd1+ 38. Kxd1 {[%emt 0:00:01]} Nc5 {[%emt 0:00:10]} 39. Kc2 {[%emt 0:00:01]} Nd3 {[%emt 0:00:16]} 40. Bf1 {[%emt 0:00:10]} Nxe5 {[%emt 0:00:25]} 41. Bxa6 {[%emt 0:00:02]} bxa6 {[%emt 0:00:01]} 42. Kc3 {[%emt 0:00:00]} c5 {[%emt 0:00:03]} 43. f4 {[%emt 0:00:03]} Nc6 {[%emt 0:00:05]} 44. Kc4 {[%emt 0:00:03]} Nxa5+ {[%emt 0:00:01]} 45. Kxc5 {[%emt 0:00:01]} Nb3+ {[%emt 0:00:07]} 46. Kb4 {[%emt 0:00:01]} Nd4 {[%emt 0:00:02]} 47. Ka5 {[%emt 0:00:06]} Ke7 {[%emt 0:00:08]} 48. Kxa6 {[%emt 0:00:02]} Ke6 {[%emt 0:00:01]} 49. Ka5 {[%emt 0:00:10]} Kf5 {[%emt 0:00:02]} 50. Kb4 {[%emt 0:00:02]} Kg4 {[%emt 0:00:01]} 51. Kc4 {[%emt 0:00:04]} Nf5 {[%emt 0:00:02]} 0-1

[Event "British KO-ch Pre 2019"]
[Site "London"]
[Date "2019.11.30"]
[Round "8.7"]
[White "Claridge-Hansen, William"]
[Black "Kalaiyalahan, Akshaya"]
[Result "1-0"]
[ECO "A36"]
[WhiteElo "2290"]
[BlackElo "2154"]
[Annotator "NA RC"]
[PlyCount "75"]
[EventDate "2019.11.30"]
[EventType "k.o."]
[EventCountry "ENG"]
[SourceTitle "playchess.com"]
[Source "ChessBase"]
[SourceQuality "1"]
[TimeControl "600+5"]

1. c4 {[%emt 0:00:00]} Nf6 {[%emt 0:00:00]} 2. g3 {[%emt 0:00:00]} g6 {[%emt 0:00:00]} 3. Bg2 {[%emt 0:00:00]} Bg7 {[%emt 0:00:00]} 4. Nc3 {[%emt 0:00:00]} O-O {[%emt 0:00:02]} 5. e4 {[%emt 0:00:01]} c5 {[%emt 0:00:23]} 6. Nge2 {[%emt 0:00:02]} Nc6 {[%emt 0:00:08]} 7. d3 {[%emt 0:00:09]} Ne8 {[%emt 0:00:34]} 8. Be3 {[%emt 0:00:04]} Nd4 {[%emt 0:00:23]} 9. Rb1 {[%emt 0:00:15]} Nc7 {[%emt 0:01:20]} 10. O-O {[%emt 0:00:31]} d6 {[%emt 0:00:04]} 11. b4 {[%emt 0:01:09]} Nce6 {[%emt 0:00:56]} 12. f4 {[%emt 0:00:54]} Nxe2+ {[%emt 0:00:51]} 13. Nxe2 {[%emt 0:00:02]} Nd4 {[%emt 0:00:14]} 14. Nxd4 {[%emt 0:00:37]} cxd4 {[%emt 0:00:15]} 15. Bd2 {[%emt 0:00:07]} e6 {[%emt 0:00:22]} 16. Qe2 {[%emt 0:00:58]} Re8 {[%emt 0:00:23]} 17. e5 {[%emt 0:00:45]} Qc7 {[%emt 0:00:30]} 18. Rfe1 {[%emt 0:00:32]} dxe5 {[%emt 0:00:06]} 19. fxe5 {[%emt 0:00:01]} h6 {[%emt 0:01:43]} 20. Qe4 {[%emt 0:00:47]} Rd8 {[%emt 0:00:32]} 21. b5 {[%emt 0:00:01]} Rb8 {[%emt 0:01:19]} 22. Bb4 {[%emt 0:00:28]} Bf8 {[%emt 0:00:01]} 23. Bxf8 {[%emt 0:00:03]} Kxf8 {[%emt 0:00:07]} 24. Rf1 {[%emt 0:00:15]} Kg8 {[%emt 0:00:10]} 25. Rf6 {[%emt 0:00:08]} b6 {[%emt 0:00:15]} 26. Qf4 {[%emt 0:01:09]} Kg7 {[%emt 0:00:25]} 27. Rf1 {[%emt 0:00:05]} Rd7 {[%emt 0:00:11]} 28. h4 {[%emt 0:01:43]} Bb7 {[%emt 0:00:08]} 29. Bh3 {[%emt 0:00:56]} Ba8 {[%emt 0:00:02]} 30. Bxe6 {[%emt 0:00:12]} fxe6 {[%emt 0:00:16]} 31. h5 {[%emt 0:00:01]} g5 {[%emt 0:00:21]} 32. Rg6+ {[%emt 0:00:02]} Kh7 {[%emt 0:00:06]} 33. Qf6 {[%emt 0:00:01]} Rg7 {[%emt 0:00:18]} 34. Rxh6+ {[%emt 0:00:12]} Kg8 {[%emt 0:00:02]} 35. Qxe6+ {[%emt 0:00:07]} Rf7 {[%emt 0:00:02]} 36. Rg6+ {[%emt 0:00:16]} Kf8 {[%emt 0:00:01]} 37. Rxf7+ {[%emt 0:00:04]} Qxf7 {[%emt 0:00:02]} 38. Rf6 {[%emt 0:00:01]} 1-0

[Event "British KO-ch Pre 2019"]
[Site "London"]
[Date "2019.11.30"]
[Round "9.3"]
[White "Clarke, Brandon G I"]
[Black "Haria, Ravi"]
[Result "1-0"]
[ECO "C10"]
[WhiteElo "2431"]
[BlackElo "2451"]
[Annotator "RC"]
[PlyCount "101"]
[EventDate "2019.11.30"]
[EventType "k.o."]
[EventCountry "ENG"]
[SourceTitle "playchess.com"]
[Source "ChessBase"]
[SourceQuality "1"]
[TimeControl "600+5"]

1. e4 {[%emt 0:00:35]} e6 {[%emt 0:00:00]} 2. d4 {[%emt 0:00:01]} d5 {[%emt 0:00:00]} 3. Nc3 {[%emt 0:00:01]} dxe4 {[%emt 0:00:02]} 4. Nxe4 {[%emt 0:00:00]} Bd7 {[%emt 0:00:02]} 5. Nf3 {[%emt 0:00:01]} Bc6 {[%emt 0:00:00]} 6. Bd3 {[%emt 0:00:01]} Nd7 {[%emt 0:00:05]} 7. c3 {[%emt 0:00:02]} Bxe4 8. Bxe4 {[%emt 0:00:01]} c6 {[%emt 0:00:44]} 9. Bf4 {[%emt 0:00:27]} Ngf6 {[%emt 0:00:35]} 10. Bc2 {[%emt 0:00:05]} Be7 {[%emt 0:00:53]} 11. O-O {[%emt 0:00:08]} Qa5 {[%emt 0:00:09]} 12. Re1 {[%emt 0:00:19]} Qh5 {[%emt 0:00:17]} 13. Qd3 {[%emt 0:01:07]} O-O {[%emt 0:02:30]} 14. Ne5 {[%emt 0:00:01]} Rad8 {[%emt 0:00:32]} 15. h3 {[%emt 0:00:18]} Nd5 {[%emt 0:00:56]} 16. Bh2 {[%emt 0:00:41]} Rfe8 {[%emt 0:00:44]} 17. f4 {[%emt 0:01:08]} g6 {[%emt 0:00:44]} 18. g4 {[%emt 0:00:31]} Qh6 {[%emt 0:00:03]} 19. Qf3 {[%emt 0:01:03]} Nxe5 {[%emt 0:01:19]} 20. dxe5 {[%emt 0:01:23]} Bc5+ {[%emt 0:00:24]} 21. Kh1 {[%emt 0:00:23]} Bb6 {[%emt 0:00:39]} 22. Bb3 {[%emt 0:00:25]} Qh4 {[%emt 0:00:24]} 23. Re2 {[%emt 0:00:13]} Rd7 {[%emt 0:00:08]} 24. Bg3 {[%emt 0:00:06]} Qe7 {[%emt 0:00:12]} 25. Rf1 {[%emt 0:00:06]} Red8 {[%emt 0:00:12]} 26. f5 {[%emt 0:00:14]} Nc7 {[%emt 0:00:05]} 27. Qg2 {[%emt 0:01:00]} Nd5 {[%emt 0:00:12]} 28. Qe4 {[%emt 0:00:28]} Nc7 {[%emt 0:00:05]} 29. Bf4 {[%emt 0:00:31]} Rd3 {[%emt 0:00:11]} 30. Kg2 {[%emt 0:00:04]} Qh4 {[%emt 0:00:11]} 31. Rf3 {[%emt 0:00:03]} Rxf3 {[%emt 0:00:05]} 32. Qxf3 {[%emt 0:00:01]} Qe7 {[%emt 0:00:06]} 33. Kg3 {[%emt 0:00:42]} Nd5 {[%emt 0:00:02]} 34. Bc1 {[%emt 0:00:04]} Qc5 {[%emt 0:00:09]} 35. Re1 {[%emt 0:00:12]} Bc7 {[%emt 0:00:07]} 36. Kg2 {[%emt 0:00:09]} b5 {[%emt 0:00:03]} 37. h4 {[%emt 0:00:02]} Qe7 {[%emt 0:00:02]} 38. h5 {[%emt 0:00:02]} gxh5 {[%emt 0:00:11]} 39. f6 {[%emt 0:00:04]} Qc5 {[%emt 0:00:02]} 40. Bc2 {[%emt 0:00:10]} Kh8 {[%emt 0:00:08]} 41. Qe4 {[%emt 0:00:01]} Nxf6 {[%emt 0:00:06]} 42. exf6 {[%emt 0:00:01]} Qd5 {[%emt 0:00:11]} 43. Rh1 {[%emt 0:00:15]} Rg8 {[%emt 0:00:00]} 44. Qxd5 {[%emt 0:00:08]} cxd5 {[%emt 0:00:04]} 45. Rxh5 Rxg4+ {[%emt 0:00:01]} 46. Kf3 {[%emt 0:00:11]} Rg3+ {[%emt 0:00:05]} 47. Kf2 {[%emt 0:00:01]} Kg8 {[%emt 0:00:02]} 48. Bxh7+ {[%emt 0:00:03]} Kf8 {[%emt 0:00:04]} 49. Bd3 {[%emt 0:00:21]} a6 {[%emt 0:00:12]} 50. Rh8+ {[%emt 0:00:00]} Rg8 {[%emt 0:00:02]} 51. Bh6+ {[%emt 0:00:00]} 1-0